[Event "Early-Titled-Tuesday-Blitz-January-30-2024"]
[Site "Chess.com"]
[Date "2024.01.30"]
[Round "9"]
[White "mbojan"]
[Black "Andrey_Klymchuk"]
[Result "0-1"]
[WhiteElo "2859"]
[BlackElo "2747"]
[TimeControl "180+1"]
[EndTime "9:48:25 PST"]
[Termination "Andrey_Klymchuk won on time"]

1. e4 {[%clk 0:02:59.5]} 1... c5 {[%clk 0:02:59.7]} 2. Nf3 {[%clk 0:02:56.6]}
2... Nc6 {[%clk 0:02:59.7]} 3. Bb5 {[%clk 0:02:56]} 3... g6 {[%clk 0:02:59.4]}
4. O-O {[%clk 0:02:56.4]} 4... Bg7 {[%clk 0:02:59.5]} 5. c3 {[%clk 0:02:57.2]}
5... Nf6 {[%clk 0:02:59]} 6. Re1 {[%clk 0:02:57.9]} 6... O-O {[%clk 0:02:57.4]}
7. d4 {[%clk 0:02:58]} 7... d5 {[%clk 0:02:57.6]} 8. e5 {[%clk 0:02:58]} 8...
Ne4 {[%clk 0:02:57.6]} 9. Bxc6 {[%clk 0:02:40.3]} 9... bxc6 {[%clk 0:02:56.8]}
10. Be3 {[%clk 0:02:41.2]} 10... cxd4 {[%clk 0:02:51.1]} 11. cxd4 {[%clk
0:02:42.1]} 11... a5 {[%clk 0:02:47.8]} 12. Nbd2 {[%clk 0:02:37]} 12... Nxd2
{[%clk 0:02:45.6]} 13. Nxd2 {[%clk 0:02:14.4]} 13... a4 {[%clk 0:02:42.5]} 14.
Rc1 {[%clk 0:01:58.6]} 14... Qb6 {[%clk 0:02:41.9]} 15. Qc2 {[%clk 0:01:40.9]}
15... Bf5 {[%clk 0:02:29.8]} 16. Qxc6 {[%clk 0:01:40.6]} 16... Qxb2 {[%clk
0:02:29.6]} 17. Qxd5 {[%clk 0:01:41]} 17... Be6 {[%clk 0:02:29.1]} 18. Qc5
{[%clk 0:01:41.6]} 18... Rfc8 {[%clk 0:02:24.1]} 19. Rb1 {[%clk 0:01:27]} 19...
Rxc5 {[%clk 0:01:45.9]} 20. Rxb2 {[%clk 0:01:25.5]} 20... a3 {[%clk 0:01:46]}
21. Rb7 {[%clk 0:00:35.7]} 21... Rc2 {[%clk 0:01:45]} 22. Reb1 {[%clk
0:00:23.1]} 22... Bxa2 {[%clk 0:01:36.1]} 23. Rb8+ {[%clk 0:00:22.2]} 23... Rc8
{[%clk 0:01:36]} 24. Rxa8 {[%clk 0:00:03]} 24... Rxa8 {[%clk 0:01:35.4]} 25. Ra1
{[%clk 0:00:03.9]} 25... Bd5 {[%clk 0:01:33.9]} 26. Kf1 {[%clk 0:00:04.7]} 26...
f6 {[%clk 0:01:32.7]} 27. f4 {[%clk 0:00:04.5]} 27... g5 {[%clk 0:01:30.1]} 28.
g3 {[%clk 0:00:04.8]} 28... gxf4 {[%clk 0:01:29.5]} 29. gxf4 {[%clk 0:00:05.7]}
29... e6 {[%clk 0:01:26.2]} 30. Ke2 {[%clk 0:00:05.4]} 30... f5 {[%clk
0:01:23.2]} 31. Kd3 {[%clk 0:00:05.6]} 31... a2 {[%clk 0:01:20.7]} 32. Nc4
{[%clk 0:00:05.1]} 32... Bf8 {[%clk 0:01:12.6]} 33. Bd2 {[%clk 0:00:04.9]} 33...
Ra4 {[%clk 0:01:11.1]} 34. Nd6 {[%clk 0:00:04.3]} 34... Ra3+ {[%clk 0:01:05.7]}
35. Kc2 {[%clk 0:00:03.7]} 35... Be7 {[%clk 0:01:04.9]} 36. Kb2 {[%clk
0:00:03.8]} 36... Rh3 {[%clk 0:01:03.4]} 37. Rg1+ {[%clk 0:00:03.7]} 37... Kf8
{[%clk 0:01:03.6]} 38. Bb4 {[%clk 0:00:03.6]} 38... Rxh2+ {[%clk 0:01:03]} 39.
Ka1 {[%clk 0:00:04.3]} 39... Rf2 {[%clk 0:00:58.2]} 40. Bc5 {[%clk 0:00:02.3]}
40... h5 {[%clk 0:00:57.6]} 41. Nc8 {[%clk 0:00:01.8]} 41... Bxc5 {[%clk
0:00:56.5]} 42. dxc5 {[%clk 0:00:02.7]} 42... h4 {[%clk 0:00:54.5]} 43. Nb6
{[%clk 0:00:03.1]} 43... Bc6 {[%clk 0:00:53.4]} 44. Rg6 {[%clk 0:00:01.5]} 44...
h3 {[%clk 0:00:50.9]} 0-1

[Event "Early-Titled-Tuesday-Blitz-January-30-2024"]
[Site "Chess.com"]
[Date "2024.01.30"]
[Round "9"]
[White "marik_spb"]
[Black "Matibar"]
[Result "0-1"]
[WhiteElo "2474"]
[BlackElo "2820"]
[TimeControl "180+1"]
[EndTime "9:48:26 PST"]
[Termination "Matibar won by resignation"]

1. d4 {[%clk 0:03:00.2]} 1... d6 {[%clk 0:02:59.6]} 2. c4 {[%clk 0:02:57.9]}
2... e5 {[%clk 0:02:58.8]} 3. dxe5 {[%clk 0:02:58.1]} 3... dxe5 {[%clk 0:02:59]}
4. Qxd8+ {[%clk 0:02:59]} 4... Kxd8 {[%clk 0:02:59.4]} 5. g3 {[%clk 0:02:55.4]}
5... Be6 {[%clk 0:02:56.9]} 6. b3 {[%clk 0:02:54.8]} 6... c6 {[%clk 0:02:53.9]}
7. h4 {[%clk 0:02:52.8]} 7... Na6 {[%clk 0:02:32.6]} 8. Bb2 {[%clk 0:02:42.9]}
8... Nb4 {[%clk 0:02:20.4]} 9. Na3 {[%clk 0:01:55.8]} 9... f6 {[%clk 0:02:19.3]}
10. O-O-O+ {[%clk 0:01:53.1]} 10... Kc7 {[%clk 0:02:18.8]} 11. Kb1 {[%clk
0:01:45.1]} 11... Bf5+ {[%clk 0:02:16.9]} 12. Ka1 {[%clk 0:01:44.8]} 12... a5
{[%clk 0:02:16.4]} 13. Bh3 {[%clk 0:01:40.6]} 13... Bxh3 {[%clk 0:02:14.4]} 14.
Nxh3 {[%clk 0:01:36.9]} 14... a4 {[%clk 0:02:15.3]} 15. Kb1 {[%clk 0:01:32.5]}
15... Bc5 {[%clk 0:02:10.9]} 16. f4 {[%clk 0:01:28.4]} 16... e4 {[%clk
0:02:02.2]} 17. f5 {[%clk 0:01:25.5]} 17... Nh6 {[%clk 0:01:58.1]} 18. Nf4
{[%clk 0:01:21.8]} 18... Nxf5 {[%clk 0:01:51.8]} 19. g4 {[%clk 0:01:16.3]} 19...
Ne3 {[%clk 0:01:41.7]} 20. Ne6+ {[%clk 0:01:15.4]} 20... Kb6 {[%clk 0:01:41.9]}
21. Nxc5 {[%clk 0:01:15.9]} 21... Nxd1 {[%clk 0:01:38.8]} 22. Nxa4+ {[%clk
0:00:17.6]} 22... Rxa4 {[%clk 0:01:33.4]} 23. Rxd1 {[%clk 0:00:14.8]} 23... Raa8
{[%clk 0:01:31.4]} 24. c5+ {[%clk 0:00:13]} 24... Kc7 {[%clk 0:01:28.1]} 25. Nc4
{[%clk 0:00:12.4]} 25... Rhd8 {[%clk 0:01:13.7]} 26. Rd6 {[%clk 0:00:12.6]}
26... Nd5 {[%clk 0:01:09.9]} 27. g5 {[%clk 0:00:10.4]} 27... Rxd6 {[%clk
0:01:08.1]} 28. cxd6+ {[%clk 0:00:09.3]} 28... Kd7 {[%clk 0:01:07.8]} 29. gxf6
{[%clk 0:00:08.8]} 29... gxf6 {[%clk 0:01:07.5]} 30. Bxf6 {[%clk 0:00:09.4]}
30... b5 {[%clk 0:01:07.6]} 31. Ne5+ {[%clk 0:00:07.5]} 31... Kxd6 {[%clk
0:00:58.4]} 32. Bg7 {[%clk 0:00:06.6]} 32... Rg8 {[%clk 0:00:57.1]} 33. Nf7+
{[%clk 0:00:02.4]} 33... Ke7 {[%clk 0:00:56.3]} 34. Nh6 {[%clk 0:00:02.9]} 34...
Rxg7 {[%clk 0:00:56.5]} 35. Nf5+ {[%clk 0:00:03.5]} 35... Kf6 {[%clk 0:00:57.2]}
36. Nxg7 {[%clk 0:00:04.4]} 36... Kxg7 {[%clk 0:00:58.1]} 37. a4 {[%clk
0:00:05.3]} 37... bxa4 {[%clk 0:00:57.8]} 38. bxa4 {[%clk 0:00:06.2]} 38... Nc3+
{[%clk 0:00:58.3]} 39. Kc2 {[%clk 0:00:05.1]} 39... Nxa4 {[%clk 0:00:59.2]} 40.
Kb3 {[%clk 0:00:05.7]} 40... Nb6 {[%clk 0:00:58.8]} 41. Kb4 {[%clk 0:00:06.3]}
41... Nd7 {[%clk 0:00:59]} 42. Kc4 {[%clk 0:00:05.5]} 42... Kf6 {[%clk
0:00:59.2]} 43. Kd4 {[%clk 0:00:06.3]} 43... Kf5 {[%clk 0:00:59.2]} 44. e3
{[%clk 0:00:06.2]} 44... h5 {[%clk 0:00:59.5]} 0-1

[Event "Early-Titled-Tuesday-Blitz-January-30-2024"]
[Site "Chess.com"]
[Date "2024.01.30"]
[Round "9"]
[White "vasblesk"]
[Black "JeFumeDesClopes"]
[Result "0-1"]
[WhiteElo "2747"]
[BlackElo "2596"]
[TimeControl "180+1"]
[EndTime "9:48:28 PST"]
[Termination "JeFumeDesClopes won by resignation"]

1. d4 {[%clk 0:02:52]} 1... Nf6 {[%clk 0:02:59.2]} 2. c4 {[%clk 0:02:51.8]} 2...
c5 {[%clk 0:02:59.6]} 3. d5 {[%clk 0:02:51.7]} 3... b5 {[%clk 0:03:00.2]} 4.
cxb5 {[%clk 0:02:52.2]} 4... a6 {[%clk 0:03:00.9]} 5. e3 {[%clk 0:02:51.7]} 5...
axb5 {[%clk 0:03:00.7]} 6. Bxb5 {[%clk 0:02:50.3]} 6... Qa5+ {[%clk 0:03:00.1]}
7. Nc3 {[%clk 0:02:50.2]} 7... Bb7 {[%clk 0:03:00.8]} 8. Bc4 {[%clk 0:02:32]}
8... e6 {[%clk 0:02:50.8]} 9. Bd2 {[%clk 0:02:17.8]} 9... Qb6 {[%clk 0:02:45.5]}
10. e4 {[%clk 0:02:03.7]} 10... Nxe4 {[%clk 0:02:39]} 11. Nxe4 {[%clk 0:01:30]}
11... exd5 {[%clk 0:02:37.6]} 12. Qe2 {[%clk 0:01:20.9]} 12... dxe4 {[%clk
0:02:34.4]} 13. Bc3 {[%clk 0:01:20.3]} 13... d5 {[%clk 0:02:28.7]} 14. Bb5+
{[%clk 0:01:20.1]} 14... Bc6 {[%clk 0:02:09.9]} 15. Bxc6+ {[%clk 0:01:17.5]}
15... Qxc6 {[%clk 0:02:07.2]} 16. Nf3 {[%clk 0:01:05.5]} 16... Be7 {[%clk
0:01:58.7]} 17. Ne5 {[%clk 0:00:59.7]} 17... Qa6 {[%clk 0:01:56.1]} 18. Qg4
{[%clk 0:00:54.9]} 18... Qe6 {[%clk 0:01:06]} 19. Qxg7 {[%clk 0:00:17.1]} 19...
Bf6 {[%clk 0:01:06.1]} 20. Qg4 {[%clk 0:00:16.8]} 20... d4 {[%clk 0:00:59.8]}
21. Qxe6+ {[%clk 0:00:16.7]} 21... fxe6 {[%clk 0:01:00]} 22. Ng4 {[%clk
0:00:17.3]} 22... Bg7 {[%clk 0:00:59.4]} 23. Bxd4 {[%clk 0:00:09]} 23... cxd4
{[%clk 0:00:57]} 24. f3 {[%clk 0:00:08.9]} 24... h5 {[%clk 0:00:54.3]} 25. Nf2
{[%clk 0:00:08.8]} 25... e3 {[%clk 0:00:53.8]} 26. Nd3 {[%clk 0:00:09.2]} 26...
Nc6 {[%clk 0:00:52.7]} 27. f4 {[%clk 0:00:09.7]} 27... e5 {[%clk 0:00:52.4]} 28.
Rc1 {[%clk 0:00:08.6]} 28... e4 {[%clk 0:00:49.9]} 29. Nc5 {[%clk 0:00:08.8]}
29... d3 {[%clk 0:00:42.9]} 30. O-O {[%clk 0:00:07.9]} 30... e2 {[%clk
0:00:37.5]} 31. Rf2 {[%clk 0:00:02.5]} 31... e3 {[%clk 0:00:26]} 32. Nxd3 {[%clk
0:00:02.1]} 32... exf2+ {[%clk 0:00:25.4]} 33. Kxf2 {[%clk 0:00:03]} 33... Nd4
{[%clk 0:00:24]} 34. Rc8+ {[%clk 0:00:03.3]} 34... Rxc8 {[%clk 0:00:23.6]} 0-1

[Event "Early-Titled-Tuesday-Blitz-January-30-2024"]
[Site "Chess.com"]
[Date "2024.01.30"]
[Round "9"]
[White "xakevicius91"]
[Black "RobertoJBM"]
[Result "1-0"]
[WhiteElo "2598"]
[BlackElo "2802"]
[TimeControl "180+1"]
[EndTime "9:48:28 PST"]
[Termination "xakevicius91 won by resignation"]

1. e4 {[%clk 0:03:00.9]} 1... c6 {[%clk 0:02:57.8]} 2. d4 {[%clk 0:03:00.8]}
2... d5 {[%clk 0:02:58.7]} 3. e5 {[%clk 0:03:01.3]} 3... Bf5 {[%clk 0:02:58.4]}
4. Nd2 {[%clk 0:02:59.8]} 4... e6 {[%clk 0:02:58.4]} 5. Nb3 {[%clk 0:03:00.2]}
5... Nd7 {[%clk 0:02:58.3]} 6. Nf3 {[%clk 0:03:00.5]} 6... a6 {[%clk 0:02:57.8]}
7. Be2 {[%clk 0:03:00.4]} 7... Rc8 {[%clk 0:02:56.1]} 8. O-O {[%clk 0:02:59.9]}
8... c5 {[%clk 0:02:56.5]} 9. dxc5 {[%clk 0:03:00.1]} 9... Nxc5 {[%clk
0:02:56.6]} 10. Nfd4 {[%clk 0:02:53.9]} 10... Bg6 {[%clk 0:02:53.5]} 11. Be3
{[%clk 0:02:50.6]} 11... Nh6 {[%clk 0:02:47.3]} 12. c3 {[%clk 0:02:38]} 12...
Nf5 {[%clk 0:02:42.8]} 13. Nxf5 {[%clk 0:02:36.6]} 13... Bxf5 {[%clk 0:02:43.7]}
14. Nd4 {[%clk 0:02:28.4]} 14... Bg6 {[%clk 0:02:41.3]} 15. f4 {[%clk
0:02:17.7]} 15... Be4 {[%clk 0:02:39.8]} 16. Qe1 {[%clk 0:02:14.3]} 16... g6
{[%clk 0:02:37.5]} 17. Qf2 {[%clk 0:02:02.7]} 17... Be7 {[%clk 0:02:29.1]} 18.
Rfd1 {[%clk 0:01:43.2]} 18... Na4 {[%clk 0:02:27.7]} 19. Rd2 {[%clk 0:01:41.3]}
19... O-O {[%clk 0:02:21.1]} 20. Bf3 {[%clk 0:01:38.5]} 20... Nc5 {[%clk
0:02:18.5]} 21. Nb3 {[%clk 0:01:25.3]} 21... Nxb3 {[%clk 0:02:16.6]} 22. axb3
{[%clk 0:01:24.9]} 22... Bxf3 {[%clk 0:02:16.9]} 23. Qxf3 {[%clk 0:01:25]} 23...
Qc7 {[%clk 0:02:13.5]} 24. Bd4 {[%clk 0:01:24.7]} 24... Qc6 {[%clk 0:02:12.5]}
25. b4 {[%clk 0:01:23.5]} 25... Rfd8 {[%clk 0:02:09.9]} 26. g4 {[%clk
0:01:23.7]} 26... Bf8 {[%clk 0:02:07]} 27. f5 {[%clk 0:01:22.6]} 27... Qd7
{[%clk 0:01:57.8]} 28. Rf1 {[%clk 0:01:04.5]} 28... Rc4 {[%clk 0:01:56.2]} 29.
Rdf2 {[%clk 0:01:00]} 29... exf5 {[%clk 0:01:21.5]} 30. gxf5 {[%clk 0:00:58.9]}
30... Bg7 {[%clk 0:01:18.9]} 31. e6 {[%clk 0:00:32.9]} 31... fxe6 {[%clk
0:01:18.8]} 32. f6 {[%clk 0:00:32.9]} 32... Rf8 {[%clk 0:01:03.3]} 33. f7+
{[%clk 0:00:16.2]} 33... Kh8 {[%clk 0:00:54.7]} 34. Bxg7+ {[%clk 0:00:15.2]}
34... Kxg7 {[%clk 0:00:55.6]} 35. Qf6+ {[%clk 0:00:15.5]} 35... Kh6 {[%clk
0:00:56]} 36. Rf4 {[%clk 0:00:12.5]} 36... e5 {[%clk 0:00:41.8]} 37. Qxe5 {[%clk
0:00:11.3]} 37... Rxf4 {[%clk 0:00:36.1]} 38. Qxf4+ {[%clk 0:00:12.2]} 38... Kg7
{[%clk 0:00:33.1]} 39. Qf6+ {[%clk 0:00:12.4]} 39... Kh6 {[%clk 0:00:31.4]} 40.
Rf4 {[%clk 0:00:12.7]} 1-0

[Event "Early-Titled-Tuesday-Blitz-January-30-2024"]
[Site "Chess.com"]
[Date "2024.01.30"]
[Round "9"]
[White "esrosenberg"]
[Black "aksuliini1"]
[Result "1-0"]
[WhiteElo "2415"]
[BlackElo "2511"]
[TimeControl "180+1"]
[EndTime "9:48:28 PST"]
[Termination "esrosenberg won by resignation"]

1. c4 {[%clk 0:03:00.9]} 1... c5 {[%clk 0:02:54.1]} 2. g3 {[%clk 0:03:00.8]}
2... Nc6 {[%clk 0:02:52.9]} 3. Bg2 {[%clk 0:03:01.1]} 3... g6 {[%clk 0:02:52.2]}
4. Nc3 {[%clk 0:03:01]} 4... Bg7 {[%clk 0:02:52.3]} 5. a3 {[%clk 0:03:01.5]}
5... e6 {[%clk 0:02:52]} 6. b4 {[%clk 0:02:48.3]} 6... Nxb4 {[%clk 0:02:50.5]}
7. axb4 {[%clk 0:02:47.8]} 7... cxb4 {[%clk 0:02:51.4]} 8. Bb2 {[%clk
0:02:27.3]} 8... bxc3 {[%clk 0:02:49.5]} 9. Bxc3 {[%clk 0:02:28.2]} 9... Bxc3
{[%clk 0:02:39.3]} 10. dxc3 {[%clk 0:02:29.1]} 10... d6 {[%clk 0:02:39.9]} 11.
Nh3 {[%clk 0:02:16.8]} 11... Nf6 {[%clk 0:02:37.1]} 12. O-O {[%clk 0:02:16.6]}
12... O-O {[%clk 0:02:37]} 13. Rb1 {[%clk 0:02:16.2]} 13... Qc7 {[%clk
0:02:36.7]} 14. Nf4 {[%clk 0:02:12.1]} 14... Rd8 {[%clk 0:02:31.8]} 15. Qd3
{[%clk 0:02:03.1]} 15... Rb8 {[%clk 0:02:27.9]} 16. Rfd1 {[%clk 0:02:01]} 16...
b6 {[%clk 0:02:26.8]} 17. h4 {[%clk 0:01:56.1]} 17... Bb7 {[%clk 0:02:21.3]} 18.
h5 {[%clk 0:01:54.3]} 18... Bxg2 {[%clk 0:02:14.2]} 19. Kxg2 {[%clk 0:01:54.3]}
19... Kg7 {[%clk 0:02:09.9]} 20. Rh1 {[%clk 0:01:52.8]} 20... Qc6+ {[%clk
0:01:55.9]} 21. f3 {[%clk 0:01:49.6]} 21... Rbc8 {[%clk 0:01:28.4]} 22. h6+
{[%clk 0:01:44.1]} 22... Kf8 {[%clk 0:01:17.6]} 23. Rb4 {[%clk 0:01:38.8]} 23...
e5 {[%clk 0:01:16.9]} 24. Nd5 {[%clk 0:01:30]} 24... Nxd5 {[%clk 0:01:16]} 25.
cxd5 {[%clk 0:01:30.9]} 25... Qxc3 {[%clk 0:01:15.8]} 26. Qb1 {[%clk 0:01:31.5]}
26... Qd2 {[%clk 0:01:10.4]} 27. Rb2 {[%clk 0:01:27.9]} 27... Qxd5 {[%clk
0:01:10.6]} 28. Qa1 {[%clk 0:01:25]} 28... Rc7 {[%clk 0:01:04.1]} 29. Rd1 {[%clk
0:01:21.6]} 29... Qc5 {[%clk 0:00:52.8]} 30. Ra2 {[%clk 0:01:18.2]} 30... a5
{[%clk 0:00:50.4]} 31. f4 {[%clk 0:01:15]} 31... Ke7 {[%clk 0:00:42.7]} 32. Rad2
{[%clk 0:01:03.3]} 32... Rcd7 {[%clk 0:00:19.8]} 33. Rd5 {[%clk 0:01:02.4]}
33... Qc4 {[%clk 0:00:17.8]} 34. fxe5 {[%clk 0:00:53.4]} 34... Qxe2+ {[%clk
0:00:18.2]} 35. Kh1 {[%clk 0:00:45.5]} 35... Qh5+ {[%clk 0:00:17.4]} 36. Kg1
{[%clk 0:00:43.8]} 36... dxe5 {[%clk 0:00:04.1]} 37. Rxe5+ {[%clk 0:00:42.6]}
37... Kf8 {[%clk 0:00:03.9]} 38. Rxd7 {[%clk 0:00:40.8]} 38... Rxd7 {[%clk
0:00:03.8]} 39. Rxh5 {[%clk 0:00:40.8]} 39... gxh5 {[%clk 0:00:04.7]} 40. Qg7+
{[%clk 0:00:38.7]} 40... Ke7 {[%clk 0:00:04.9]} 41. Qxh7 {[%clk 0:00:39]} 1-0

[Event "Early-Titled-Tuesday-Blitz-January-30-2024"]
[Site "Chess.com"]
[Date "2024.01.30"]
[Round "9"]
[White "elgrona"]
[Black "ImportedItalianMaple"]
[Result "0-1"]
[WhiteElo "2330"]
[BlackElo "2472"]
[TimeControl "180+1"]
[EndTime "9:48:28 PST"]
[Termination "ImportedItalianMaple won on time"]

1. Nf3 {[%clk 0:03:00.9]} 1... Nf6 {[%clk 0:02:59.3]} 2. b3 {[%clk 0:03:00.7]}
2... d5 {[%clk 0:02:58.7]} 3. Bb2 {[%clk 0:03:01.6]} 3... Bf5 {[%clk 0:02:58.8]}
4. e3 {[%clk 0:02:59.6]} 4... e6 {[%clk 0:02:58.2]} 5. Nh4 {[%clk 0:02:57.6]}
5... Bg4 {[%clk 0:02:54.7]} 6. f3 {[%clk 0:02:47.9]} 6... Bh5 {[%clk 0:02:54.9]}
7. g3 {[%clk 0:02:39.5]} 7... Be7 {[%clk 0:02:47.3]} 8. Nc3 {[%clk 0:02:35.5]}
8... Nbd7 {[%clk 0:02:40.3]} 9. Ne2 {[%clk 0:02:16.1]} 9... c6 {[%clk
0:02:33.9]} 10. Nf4 {[%clk 0:02:09]} 10... Bg6 {[%clk 0:02:26.9]} 11. Nhxg6
{[%clk 0:01:55.7]} 11... hxg6 {[%clk 0:02:27.8]} 12. Bd3 {[%clk 0:01:56]} 12...
e5 {[%clk 0:02:20.4]} 13. Ng2 {[%clk 0:01:41.1]} 13... Bd6 {[%clk 0:02:01.9]}
14. f4 {[%clk 0:01:39.3]} 14... Qe7 {[%clk 0:01:52]} 15. O-O {[%clk 0:01:36.3]}
15... O-O-O {[%clk 0:01:41.3]} 16. c3 {[%clk 0:01:27]} 16... e4 {[%clk
0:01:36.9]} 17. Be2 {[%clk 0:01:26.9]} 17... Rh3 {[%clk 0:01:36.4]} 18. Bg4
{[%clk 0:01:07.5]} 18... Nxg4 {[%clk 0:01:35]} 19. Qxg4 {[%clk 0:01:08.4]} 19...
Rh6 {[%clk 0:01:33.6]} 20. h4 {[%clk 0:01:06.6]} 20... f5 {[%clk 0:01:24.9]} 21.
Qe2 {[%clk 0:01:03.3]} 21... Nf6 {[%clk 0:01:22.1]} 22. c4 {[%clk 0:00:55]}
22... Ng4 {[%clk 0:01:15.5]} 23. cxd5 {[%clk 0:00:54.3]} 23... cxd5 {[%clk
0:01:15.4]} 24. Rac1+ {[%clk 0:00:54.2]} 24... Kb8 {[%clk 0:01:15.4]} 25. Rc2
{[%clk 0:00:52.6]} 25... Rh7 {[%clk 0:01:01.2]} 26. Rfc1 {[%clk 0:00:52.2]}
26... g5 {[%clk 0:01:01.4]} 27. Qb5 {[%clk 0:00:37.3]} 27... gxh4 {[%clk
0:00:54.4]} 28. Qxd5 {[%clk 0:00:22.8]} 28... hxg3 {[%clk 0:00:45.2]} 29. Be5
{[%clk 0:00:16.1]} 29... Bxe5 {[%clk 0:00:37.5]} 30. fxe5 {[%clk 0:00:16.5]}
30... g5 {[%clk 0:00:22.2]} 31. Qc4 {[%clk 0:00:04.5]} 31... Rh1+ {[%clk
0:00:20]} 0-1

[Event "Early-Titled-Tuesday-Blitz-January-30-2024"]
[Site "Chess.com"]
[Date "2024.01.30"]
[Round "9"]
[White "Heinza9"]
[Black "Muslim_player_05"]
[Result "0-1"]
[WhiteElo "2303"]
[BlackElo "2492"]
[TimeControl "180+1"]
[EndTime "9:48:28 PST"]
[Termination "Muslim_player_05 won by checkmate"]

1. e4 {[%clk 0:03:00.9]} 1... e5 {[%clk 0:02:59.1]} 2. Nf3 {[%clk 0:02:59.4]}
2... Nc6 {[%clk 0:02:59.2]} 3. Nc3 {[%clk 0:02:58.7]} 3... Nf6 {[%clk
0:02:58.8]} 4. d4 {[%clk 0:02:58.2]} 4... exd4 {[%clk 0:02:59.7]} 5. Nd5 {[%clk
0:02:58.1]} 5... Nb4 {[%clk 0:02:50.4]} 6. Bc4 {[%clk 0:02:56.7]} 6... Nbxd5
{[%clk 0:02:40.2]} 7. exd5 {[%clk 0:02:56.5]} 7... Bb4+ {[%clk 0:02:39.7]} 8.
Bd2 {[%clk 0:02:55.9]} 8... Qe7+ {[%clk 0:02:36]} 9. Qe2 {[%clk 0:02:55.9]} 9...
Bxd2+ {[%clk 0:02:25.1]} 10. Kxd2 {[%clk 0:02:55.7]} 10... Qxe2+ {[%clk
0:02:00.8]} 11. Kxe2 {[%clk 0:02:55.4]} 11... a6 {[%clk 0:01:46.8]} 12. a4
{[%clk 0:02:49.3]} 12... b6 {[%clk 0:01:46.1]} 13. Nxd4 {[%clk 0:02:34.9]} 13...
Bb7 {[%clk 0:01:46]} 14. d6 {[%clk 0:02:28.6]} 14... c5 {[%clk 0:01:27.4]} 15.
Nf5 {[%clk 0:02:26]} 15... O-O {[%clk 0:01:25.2]} 16. f3 {[%clk 0:02:17]} 16...
g6 {[%clk 0:01:19.9]} 17. Ne7+ {[%clk 0:02:14.8]} 17... Kg7 {[%clk 0:01:20.5]}
18. Kf2 {[%clk 0:02:13.2]} 18... Rfe8 {[%clk 0:01:12]} 19. Rhe1 {[%clk
0:02:10.6]} 19... h5 {[%clk 0:01:04.4]} 20. Re2 {[%clk 0:01:59.4]} 20... h4
{[%clk 0:00:49.3]} 21. Rae1 {[%clk 0:01:56.2]} 21... Rh8 {[%clk 0:00:45.7]} 22.
Re5 {[%clk 0:01:31.6]} 22... Raf8 {[%clk 0:00:31.3]} 23. c3 {[%clk 0:01:24.2]}
23... Ne8 {[%clk 0:00:30.8]} 24. Rd1 {[%clk 0:01:12.6]} 24... Nf6 {[%clk
0:00:30.2]} 25. Rde1 {[%clk 0:01:01.1]} 25... Re8 {[%clk 0:00:27.2]} 26. Kg1
{[%clk 0:00:40.6]} 26... Rd8 {[%clk 0:00:22]} 27. Kf2 {[%clk 0:00:38.6]} 27...
Rdf8 {[%clk 0:00:21.4]} 28. Kg1 {[%clk 0:00:38]} 28... h3 {[%clk 0:00:21.8]} 29.
Kf2 {[%clk 0:00:28.9]} 29... hxg2 {[%clk 0:00:21.2]} 30. Kxg2 {[%clk 0:00:29.1]}
30... Rh4 {[%clk 0:00:20.5]} 31. b3 {[%clk 0:00:26.3]} 31... Rfh8 {[%clk
0:00:19.7]} 32. R1e2 {[%clk 0:00:14]} 32... Rxh2+ {[%clk 0:00:19.5]} 33. Kg3
{[%clk 0:00:12.3]} 33... R8h3+ {[%clk 0:00:18.5]} 34. Kf4 {[%clk 0:00:12]} 34...
Rxf3+ {[%clk 0:00:18.5]} 35. Kg5 {[%clk 0:00:12.2]} 35... Rh5# {[%clk
0:00:19.1]} 0-1

[Event "Early-Titled-Tuesday-Blitz-January-30-2024"]
[Site "Chess.com"]
[Date "2024.01.30"]
[Round "9"]
[White "NovakRatko"]
[Black "AustinThomas12345"]
[Result "0-1"]
[WhiteElo "2383"]
[BlackElo "2504"]
[TimeControl "180+1"]
[EndTime "9:48:31 PST"]
[Termination "AustinThomas12345 won on time"]

1. d4 {[%clk 0:02:59.7]} 1... Nf6 {[%clk 0:02:56.7]} 2. c4 {[%clk 0:02:59.4]}
2... g6 {[%clk 0:02:55.2]} 3. Nc3 {[%clk 0:02:59.3]} 3... d5 {[%clk 0:02:55.9]}
4. f3 {[%clk 0:03:00]} 4... Nc6 {[%clk 0:02:47.1]} 5. e4 {[%clk 0:02:54.7]} 5...
dxe4 {[%clk 0:02:44.6]} 6. d5 {[%clk 0:02:54.7]} 6... Ne5 {[%clk 0:02:42.9]} 7.
fxe4 {[%clk 0:02:54.7]} 7... Bg7 {[%clk 0:02:40.8]} 8. Bf4 {[%clk 0:02:53.8]}
8... Nh5 {[%clk 0:02:39.4]} 9. Bg5 {[%clk 0:02:52.5]} 9... Bg4 {[%clk
0:02:37.4]} 10. Be2 {[%clk 0:02:47.7]} 10... Bxe2 {[%clk 0:02:37.5]} 11. Qxe2
{[%clk 0:02:48.6]} 11... h6 {[%clk 0:02:37.7]} 12. Bh4 {[%clk 0:02:39.2]} 12...
O-O {[%clk 0:02:36.2]} 13. Nh3 {[%clk 0:02:25.4]} 13... c6 {[%clk 0:02:35.8]}
14. O-O {[%clk 0:02:18.1]} 14... Nf6 {[%clk 0:02:35]} 15. dxc6 {[%clk
0:02:00.7]} 15... bxc6 {[%clk 0:02:35.9]} 16. Rad1 {[%clk 0:01:58.4]} 16... Qb6+
{[%clk 0:02:35.4]} 17. Bf2 {[%clk 0:01:56.5]} 17... Qb4 {[%clk 0:02:35.7]} 18.
Rd4 {[%clk 0:01:33]} 18... c5 {[%clk 0:02:29.7]} 19. a3 {[%clk 0:01:26.8]} 19...
Qb3 {[%clk 0:02:24.7]} 20. Rdd1 {[%clk 0:01:19.2]} 20... Qxc4 {[%clk 0:02:17.2]}
21. Qxc4 {[%clk 0:01:12.1]} 21... Nxc4 {[%clk 0:02:16.8]} 22. Bxc5 {[%clk
0:01:12.5]} 22... Nxb2 {[%clk 0:02:09.9]} 23. Rb1 {[%clk 0:01:05.5]} 23... Rfc8
{[%clk 0:02:00.5]} 24. Bxe7 {[%clk 0:00:46.3]} 24... Rxc3 {[%clk 0:01:59.5]} 25.
Bxf6 {[%clk 0:00:39]} 25... Bxf6 {[%clk 0:02:00.4]} 26. Rxf6 {[%clk 0:00:38.2]}
26... Nd3 {[%clk 0:01:57.6]} 27. Nf2 {[%clk 0:00:32.7]} 27... Ne5 {[%clk
0:01:48.9]} 28. Ra6 {[%clk 0:00:26.2]} 28... Rac8 {[%clk 0:01:40.9]} 29. h3
{[%clk 0:00:25.9]} 29... R8c7 {[%clk 0:01:34.7]} 30. Rb8+ {[%clk 0:00:18.1]}
30... Kg7 {[%clk 0:01:34.5]} 31. Ra8 {[%clk 0:00:18.8]} 31... Rc1+ {[%clk
0:01:30.7]} 32. Kh2 {[%clk 0:00:19]} 32... R7c2 {[%clk 0:01:28.3]} 33. Ng4
{[%clk 0:00:18.3]} 33... Nxg4+ {[%clk 0:01:15.6]} 34. hxg4 {[%clk 0:00:18.3]}
34... Re1 {[%clk 0:01:10.7]} 35. R6xa7 {[%clk 0:00:13.4]} 35... Ree2 {[%clk
0:01:11.2]} 36. Rd8 {[%clk 0:00:11.2]} 36... Rxg2+ {[%clk 0:01:12.1]} 37. Kh1
{[%clk 0:00:10.9]} 37... Rge2 {[%clk 0:01:10.8]} 38. Rd1 {[%clk 0:00:06.7]}
38... Rxe4 {[%clk 0:01:11]} 39. Rf1 {[%clk 0:00:06.3]} 39... h5 {[%clk
0:00:58.6]} 40. Raxf7+ {[%clk 0:00:06.2]} 40... Kh6 {[%clk 0:00:57.8]} 41. gxh5
{[%clk 0:00:04.6]} 41... Kxh5 {[%clk 0:00:55.1]} 42. Rh7+ {[%clk 0:00:03.4]}
42... Kg5 {[%clk 0:00:54.3]} 43. Rg1+ {[%clk 0:00:01.8]} 43... Rg4 {[%clk
0:00:54.9]} 0-1